bitfinex/quotes_ETHUSD_20250813
["timestamp","ask_amount","ask_price","bid_price","bid_amount"]
[1755044400338,59.76941124,4599.7,4599.6,5.211]
[1755044400520,60.42821124,4599.7,4599.6,8.521]
[1755044400721,60.42821124,4599.7,4599.5,0.001]
[1755044400722,2.72410209,4599.6,4599.5,0.001]
[1755044400920,1.7352,4599.6,4599.5,0.001]
[1755044401130,3.94175568,4599.6,4599.5,0.001]
[1755044401324,6.11585777,4599.6,4599.5,3.311]
[1755044401543,6.11585777,4599.6,4599.5,0.001]
[1755044401727,5.17175568,4599.6,4599.5,3.311]
[1755044402122,5.17175568,4599.6,4599.5,0.001]
[1755044402329,7.34585777,4599.6,4599.5,3.311]
[1755044403231,6.40175568,4599.6,4599.5,3.311]
[1755044404153,6.40175568,4599.6,4599.5,0.001]
[1755044404456,6.40175568,4599.6,4599.5,3.311]
[1755044404640,7.63175568,4599.6,4599.5,3.311]
[1755044405833,9.80585777,4599.6,4599.5,3.311]
[1755044406123,8.86175568,4599.6,4599.5,0.001]
[1755044406628,11.03585777,4599.6,4599.5,3.311]
[1755044406950,2.72419663,4599.4,4599.3,0.001]
[1755044407136,2.72419663,4599.4,4599.3,3.311]
[1755044407317,5.24819663,4599.4,4599.3,3.311]
[1755044408825,6.47819663,4599.4,4599.3,3.311]
[1755044409919,6.47819663,4599.4,4599.3,0.001]
[1755044410123,8.68475231,4599.4,4599.3,0.001]
[1755044410325,9.91475231,4599.4,4599.3,3.311]
[1755044411768,11.14475231,4599.4,4599.3,3.311]
[1755044412954,12.37475231,4599.4,4599.3,3.311]
[1755044414434,13.60475231,4599.4,4599.3,3.311]
[1755044415838,14.83475231,4599.4,4599.3,3.311]
[1755044417526,2.7242439,4599.3,4599.2,0.001]
[1755044417728,6.11599958,4599.3,4599.2,0.001]
[1755044418763,6.11599958,4599.3,4599.2,3.311]
[1755044418963,7.34599958,4599.3,4599.2,3.311]
[1755044419166,7.34599958,4599.3,4599.0,0.001]
[1755044419167,2.72433845,4599.1,4599.0,0.001]
[1755044419334,4.93089413,4599.1,4599.0,0.001]
[1755044419529,6.22489413,4599.1,4599.0,0.001]
[1755044420366,7.45489413,4599.1,4599.0,0.001]
[1755044420553,2.72443301,4598.9,4598.7,0.001]
[1755044420956,3.90963301,4598.9,4598.7,0.001]
[1755044421246,4.65513188,4598.9,4598.7,0.001]
[1755044421962,5.88513188,4598.9,4598.7,3.311]
[1755044422165,2.72452758,4598.7,4598.6,0.001]
[1755044422338,2.83332758,4598.7,4598.6,0.001]
[1755044422668,4.01852758,4598.7,4598.6,0.001]
[1755044422962,4.83537825,4598.7,4598.6,0.001]
[1755044423170,6.06537825,4598.7,4598.6,0.001]
[1755044423735,6.06537825,4598.7,4598.6,3.311]
[1755044423931,6.06537825,4598.7,4598.6,0.001]
[1755044424135,2.72457487,4598.6,4598.1,0.001]
[1755044424346,2.7567452,4598.6,4597.3,0.7057]
[1755044424545,2.7567452,4598.6,4597.3,3.31]
[1755044424546,0.55,4598.4,4597.3,3.31]
[1755044424967,2.72514247,4597.4,4597.3,3.7408]
[1755044425143,0.55,4597.3,4596.9,5.213]
[1755044425343,0.55,4597.2,4597.0,3.7408]
[1755044425543,0.55,4597.2,4597.1,0.4308]
[1755044425760,2.7252371,4597.2,4597.1,0.4308]
[1755044425975,3.9552371,4597.2,4597.1,0.4308]
[1755044427243,4.56827588,4597.2,4597.1,0.4308]
[1755044427442,5.79827588,4597.2,4597.1,0.4308]
[1755044427661,3.62303878,4597.2,4597.1,0.4308]
[1755044427853,0.55,4597.1,4597.0,3.31]
[1755044428171,0.55,4597.1,4597.0,3.7408]
[1755044428887,1.78,4597.1,4597.0,3.7408]
[1755044430578,3.01,4597.1,4597.0,3.7408]
[1755044431149,3.01,4597.1,4597.0,4.5159]
[1755044431150,2.46,4597.1,4597.0,4.5159]
[1755044431343,2.46,4597.1,4597.0,6.69123173]
[1755044431861,3.69,4597.1,4597.0,8.09929645]
[1755044432069,3.69,4597.1,4597.0,22.69870226]
[1755044433418,4.92,4597.1,4597.0,22.69870226]
[1755044433997,4.92,4597.1,4597.0,22.43842245]
[1755044434716,4.92,4597.1,4597.0,22.54722245]
[1755044434864,6.15,4597.1,4597.0,22.54722245]
[1755044436471,7.38,4597.1,4597.0,22.54722245]
[1755044436667,2.46,4597.2,4597.1,2.17528441]
[1755044436900,1.23,4598.6,4598.5,2.17462215]
[1755044437104,1.3388,4598.6,4598.5,5.48462215]
[1755044437259,1.3388,4598.6,4598.5,5.93432215]
[1755044437458,1.3388,4598.6,4598.5,3.7597]
[1755044437689,1.3388,4598.6,4598.5,5.93432215]
[1755044437887,2.5688,4598.6,4598.5,3.7597]
[1755044438556,2.5688,4598.6,4598.5,5.93432215]
[1755044438799,2.46,4598.6,4598.5,7.35957437]
[1755044439112,2.46,4598.6,4598.5,37.46837437]
[1755044439266,3.69,4598.6,4598.5,37.46837437]
[1755044439908,3.69,4598.6,4598.5,38.12024837]
[1755044440688,4.92,4598.6,4598.5,38.12024837]
[1755044441590,4.92,4598.6,4598.5,38.23116229]
[1755044442089,6.15,4598.6,4598.5,38.12024837]
[1755044442414,6.15,4598.6,4598.5,36.91434837]
[1755044442776,6.15,4598.6,4598.5,37.36404837]
[1755044443313,6.15,4598.6,4598.5,16.64108537]
[1755044443477,7.38,4598.6,4598.5,16.19138537]
[1755044443682,7.38,4598.6,4598.5,16.64108537]
[1755044443897,7.38,4598.6,4598.5,21.85508537]
[1755044444096,7.38,4598.6,4598.5,12.57804837]
[1755044444307,7.38,4598.6,4598.5,22.00670437]
[1755044444704,7.38,4598.6,4598.5,21.55700437]
[1755044444902,8.61,4598.6,4598.5,21.55700437]
[1755044445103,8.61,4598.6,4598.5,10.69762215]
[1755044445303,8.61,4598.6,4598.5,7.38862215]
[1755044445502,8.61,4598.6,4598.5,10.69762215]
[1755044445709,8.61,4598.6,4598.5,8.523]
[1755044446013,9.8483,4598.6,4598.5,8.523]
[1755044446320,12.41793,4598.6,4598.5,8.523]
[1755044446819,11.94543,4598.6,4598.5,8.523]
[1755044447112,10.7146,4598.6,4598.5,8.523]
[1755044447313,11.1871,4598.6,4598.5,8.523]
[1755044447525,12.9671,4598.6,4598.5,8.523]
[1755044447694,15.14167487,4598.6,4598.5,8.523]
[1755044448921,16.37167487,4598.6,4598.5,8.523]
[1755044449102,18.47229082,4598.6,4598.5,8.523]
[1755044450120,19.70229082,4598.6,4598.5,8.523]
[1755044451503,20.93229082,4598.6,4598.5,8.523]
[1755044452916,22.16229082,4598.6,4598.5,8.523]
[1755044454503,23.39229082,4598.6,4598.5,8.523]
[1755044455234,23.39229082,4598.6,4598.5,3.309]
[1755044455896,24.62229082,4598.6,4598.5,3.309]
[1755044457428,25.85229082,4598.6,4598.5,3.309]
[1755044457595,0.55,4598.0,4597.3,7.38917769]
[1755044457923,0.55,4598.0,4597.4,3.309]
[1755044457924,0.1088,4597.6,4597.4,3.309]
[1755044458121,0.1088,4597.6,4597.3,5.214]
[1755044458323,0.8746,4597.6,4597.5,3.309]
[1755044458699,2.1046,4597.6,4597.5,3.309]
[1755044458895,2.1046,4597.6,4597.3,5.214]
[1755044459095,2.1046,4597.6,4597.5,3.309]
[1755044459436,0.55,4597.5,4597.3,5.214]
[1755044459639,0.9775,4597.5,4597.3,5.214]
[1755044459824,3.88354247,4597.4,4597.3,5.214]
[1755044460131,3.88354247,4597.4,4597.3,8.523]
[1755044460538,1.7084,4597.4,4597.3,8.523]
[1755044461030,1.2809,4597.4,4597.3,8.523]
[1755044461394,2.5109,4597.4,4597.3,8.523]
[1755044461701,2.5109,4597.4,4597.3,8.987]
[1755044461702,1.78,4597.4,4597.3,8.987]
[1755044462393,1.78,4597.4,4597.3,8.523]
[1755044462926,3.01,4597.4,4597.3,5.214]
[1755044463426,3.01,4597.4,4597.3,8.523]
[1755044463830,3.01,4597.4,4597.3,5.214]
[1755044464136,3.01,4597.4,4597.3,8.523]
[1755044464331,4.24,4597.4,4597.3,8.523]
[1755044465832,4.9709,4597.4,4597.3,8.523]
[1755044466035,6.2009,4597.4,4597.3,8.523]
[1755044466237,5.0288,4597.4,4597.3,11.16218978]
[1755044467419,6.2588,4597.4,4597.3,11.16218978]
[1755044468716,7.4888,4597.4,4597.3,11.16218978]
[1755044470041,8.7188,4597.4,4597.3,11.16218978]
[1755044471445,9.9488,4597.4,4597.3,11.16218978]
[1755044472818,11.1788,4597.4,4597.3,11.16218978]
[1755044473220,11.1788,4597.4,4597.3,10.69818978]
[1755044474154,12.4088,4597.4,4597.3,10.69818978]
[1755044475621,13.6388,4597.4,4597.3,10.69818978]
[1755044476048,13.6388,4597.4,4597.3,7.38918978]
[1755044476248,13.6388,4597.4,4597.3,10.69818978]
[1755044476441,13.6388,4597.4,4597.3,7.38918978]
[1755044476819,13.6388,4597.4,4597.3,10.69718978]
[1755044477149,14.8688,4597.4,4597.3,11.16118978]
[1755044478345,16.0988,4597.4,4597.3,11.16118978]
[1755044479734,17.3288,4597.4,4597.3,11.16118978]
[1755044479925,17.3288,4597.4,4597.3,10.69718978]
[1755044481724,18.5588,4597.4,4597.3,11.16118978]
[1755044482056,18.5588,4597.4,4597.3,10.69718978]
[1755044483460,19.7888,4597.4,4597.3,10.69718978]
[1755044484858,21.0188,4597.4,4597.3,10.69718978]
[1755044485952,21.0188,4597.4,4597.3,11.16118978]
[1755044486155,22.14,4597.4,4597.3,11.16118978]
[1755044486354,22.14,4597.4,4597.3,11.88808978]
[1755044486765,0.1088,4598.3,4597.4,30.0]
[1755044486942,0.1088,4598.3,4598.2,2.17476403]
[1755044487139,0.1088,4598.3,4598.2,5.48276403]
[1755044487354,19.682,4598.6,4598.3,2.17471674]
[1755044487553,0.1088,4598.5,4598.3,2.17471674]
[1755044487735,0.1088,4598.5,4598.3,2.63871674]
[1755044488964,1.232,4598.4,4598.3,2.63871674]
[1755044490132,1.232,4598.4,4598.3,2.17471674]
[1755044490431,4.3053,4598.4,4598.3,3.307]
[1755044490667,4.3053,4598.4,4598.3,5.48171674]
[1755044490668,6.51185568,4598.4,4598.3,5.48171674]
[1755044490975,5.21855568,4598.4,4598.3,5.48171674]
[1755044491851,6.44855568,4598.4,4598.3,5.48171674]
[1755044492030,4.242,4598.4,4598.3,5.48171674]
[1755044493532,5.472,4598.4,4598.3,5.48171674]
[1755044494742,6.702,4598.4,4598.3,5.48171674]
[1755044494942,7.5385,4598.4,4598.3,5.48171674]
[1755044495365,8.9050597,4598.4,4598.3,5.48171674]
[1755044495754,8.9050597,4598.4,4598.3,3.307]
[1755044496269,8.9050597,4598.4,4598.3,5.48171674]
[1755044496468,10.1350597,4598.4,4598.3,5.48171674]
[1755044497663,7.382,4598.4,4598.3,5.48171674]
[1755044497863,8.612,4598.4,4598.3,5.93581674]
[1755044499369,9.842,4598.4,4598.3,5.93581674]
[1755044499574,9.842,4598.4,4598.3,5.48171674]
[1755044500767,11.072,4598.4,4598.3,5.48171674]
[1755044502250,12.302,4598.4,4598.3,5.48171674]
[1755044503874,13.532,4598.4,4598.3,5.48171674]
[1755044505374,14.762,4598.4,4598.3,5.93581674]
[1755044506280,14.762,4598.4,4598.3,5.48171674]
[1755044506485,15.992,4598.4,4598.3,5.48171674]
[1755044506995,17.2853,4598.4,4598.3,2.17471674]
[1755044507147,17.2853,4598.4,4598.3,5.48071674]
[1755044507488,0.55,4598.3,4597.3,5.214]
[1755044507696,2.72484611,4598.1,4597.4,3.306]
[1755044507855,0.55,4597.7,4597.3,5.214]
[1755044508057,0.6588,4597.4,4597.3,5.214]
[1755044508401,1.9521,4597.4,4597.3,8.52]
[1755044509071,0.55,4597.8,4597.3,10.69518978]
[1755044509273,1.3388,4597.4,4597.3,10.69518978]
[1755044509980,1.3388,4597.4,4597.3,8.52]
[1755044510186,2.1753,4597.4,4597.3,8.52]
[1755044510700,2.1753,4597.4,4597.3,5.214]
[1755044510898,3.4053,4597.4,4597.3,8.52]
[1755044511265,3.4053,4597.4,4597.3,5.214]
[1755044511591,4.4121,4597.4,4597.3,5.214]
[1755044511796,4.4121,4597.4,4597.3,8.52]
[1755044512490,5.6421,4597.4,4597.3,8.52]
[1755044512697,5.1853,4597.4,4597.3,8.52]
[1755044512998,5.6421,4597.4,4597.3,8.52]
[1755044514297,6.8721,4597.4,4597.3,8.52]
[1755044515803,8.1021,4597.4,4597.3,8.52]
[1755044516970,9.3321,4597.4,4597.3,8.52]
[1755044518293,10.5621,4597.4,4597.3,8.52]
[1755044519712,11.7921,4597.4,4597.3,8.52]
[1755044520420,11.7921,4597.4,4597.3,5.214]
[1755044520711,13.18881589,4597.4,4597.3,5.214]
[1755044521074,14.41881589,4597.4,4597.3,8.52]
[1755044521275,16.59395836,4597.4,4597.3,8.52]
[1755044521472,16.59395836,4597.4,4597.3,5.214]
[1755044521706,16.59395836,4597.4,4597.3,8.52]
[1755044522277,16.59395836,4597.4,4597.3,5.214]
[1755044522494,17.82395836,4597.4,4597.3,5.214]
[1755044523093,17.82395836,4597.4,4597.3,8.52]
[1755044523793,19.05395836,4597.4,4597.3,8.52]
[1755044524400,19.05395836,4597.4,4597.3,5.214]
[1755044525123,20.28395836,4597.4,4597.3,8.52]
[1755044525323,2.72518978,4597.3,4597.1,0.001]
[1755044525523,2.7252371,4597.2,4597.1,0.001]
[1755044525822,3.9398371,4597.2,4597.1,3.307]
[1755044526433,5.1698371,4597.2,4597.1,3.307]
[1755044527819,6.3998371,4597.2,4597.1,3.307]
[1755044528124,7.42863997,4597.2,4597.1,3.307]
[1755044528329,7.42863997,4597.2,4595.0,5.4414]
[1755044528330,2.72552103,4596.6,4595.0,5.4414]
[1755044528505,2.72552103,4596.6,4596.2,3.306]
[1755044528708,3.94012103,4596.6,4596.2,3.306]
[1755044528898,2.72552103,4596.6,4596.2,3.306]
[1755044529096,3.95552103,4596.6,4596.2,3.306]
[1755044529297,4.56861848,4596.6,4596.2,3.306]
[1755044529497,5.33011848,4596.6,4596.2,3.306]
[1755044529697,5.78321848,4596.6,4596.2,3.306]
[1755044530611,7.01321848,4596.6,4596.2,3.306]
[1755044532037,7.01321848,4596.6,4596.1,3.306]
[1755044532251,8.24321848,4596.6,4596.1,3.306]
[1755044532432,8.24321848,4596.6,4595.0,5.0]
[1755044532433,2.7262312,4595.1,4595.0,5.0]
[1755044532607,2.7262312,4595.1,4595.0,8.306]
[1755044532809,2.7262312,4595.1,4595.0,5.0]
[1755044533008,2.7262312,4595.1,4595.0,8.306]
[1755044533764,3.9562312,4595.1,4595.0,8.306]
[1755044533932,1.78,4595.1,4595.0,8.306]
[1755044534127,1.78,4595.1,4595.0,8.7474]
[1755044535141,3.9562312,4595.1,4595.0,8.7474]
[1755044535449,5.1862312,4595.1,4595.0,8.306]
[1755044536716,6.4162312,4595.1,4595.0,8.306]
[1755044537545,7.27546905,4595.1,4595.0,8.307]
[1755044538047,8.50546905,4595.1,4595.0,8.307]
[1755044538216,9.37576905,4595.1,4595.0,8.307]
[1755044538422,9.82886905,4595.1,4595.0,8.307]
[1755044538617,9.37576905,4595.1,4595.0,8.307]
[1755044539053,9.82886905,4595.1,4595.0,8.307]
[1755044539657,11.05886905,4595.1,4595.0,8.307]
[1755044540757,6.2588,4595.1,4595.0,8.307]
[1755044541056,7.4888,4595.1,4595.0,8.307]
[1755044541293,9.6650312,4595.1,4595.0,8.307]
[1755044541457,7.4888,4595.1,4595.0,8.307]
[1755044541656,7.4888,4595.1,4595.0,5.0]
[1755044541874,7.4888,4595.1,4595.0,8.307]
[1755044542037,7.4888,4595.1,4595.0,12.58597856]
[1755044542352,8.61,4595.1,4595.0,12.59597856]
[1755044542558,8.7188,4595.1,4595.0,12.59597856]
[1755044543744,9.9488,4595.1,4595.0,12.59597856]
[1755044544937,11.1788,4595.1,4595.0,12.59597856]
[1755044546477,12.4088,4595.1,4595.0,12.59597856]
[1755044547244,12.3,4595.1,4595.0,12.59597856]
[1755044547891,13.53,4595.1,4595.0,12.59597856]
[1755044549351,14.76,4595.1,4595.0,12.59597856]
[1755044550764,15.99,4595.1,4595.0,12.59597856]
[1755044551982,17.22,4595.1,4595.0,12.59597856]
[1755044553271,18.45,4595.1,4595.0,12.59597856]
[1755044554889,19.68,4595.1,4595.0,12.59597856]
[1755044556195,20.91,4595.1,4595.0,12.59597856]
[1755044556394,20.91,4595.1,4595.0,11.32397856]
[1755044557361,22.14,4595.1,4595.0,11.79547856]
[1755044557562,22.14,4595.1,4595.0,7.18627856]
[1755044557877,23.3278,4595.1,4595.0,8.317]
[1755044558268,22.14,4595.1,4595.0,10.49327856]
[1755044558581,22.8861,4595.1,4595.0,10.49327856]
[1755044558781,23.37,4595.1,4595.0,10.49327856]
[1755044559108,24.5578,4595.1,4595.0,8.316]
[1755044560202,25.7878,4595.1,4595.0,8.316]
[1755044560601,25.7878,4595.1,4595.0,8.317]
[1755044561262,26.3378,4595.1,4595.0,5.011]
[1755044561498,28.54435568,4595.1,4595.0,8.317]
[1755044561693,29.77435568,4595.1,4595.0,8.317]
[1755044563205,30.56265568,4595.1,4595.0,8.317]
[1755044563685,31.00435568,4595.1,4595.0,8.317]
[1755044563891,31.00435568,4595.1,4595.0,5.011]
[1755044564289,31.00435568,4595.1,4595.0,8.318]
[1755044564490,32.23435568,4595.1,4595.0,5.011]
[1755044565166,32.23435568,4595.1,4595.0,8.318]
[1755044565802,33.46435568,4595.1,4595.0,8.318]
[1755044566104,35.64058688,4595.1,4595.0,8.318]
[1755044566399,35.64058688,4595.1,4595.0,5.011]
[1755044566795,35.64058688,4595.1,4595.0,8.318]
[1755044566974,35.64058688,4595.1,4595.0,8.308]
[1755044567173,36.87058688,4595.1,4595.0,8.308]
[1755044567968,33.50655568,4595.1,4595.0,8.308]
[1755044568310,31.3,4595.1,4595.0,8.308]
[1755044568520,30.75,4595.1,4595.0,10.48427856]
[1755044568670,31.98,4595.1,4595.0,10.95577856]
[1755044569108,31.98,4595.1,4595.0,10.48427856]
[1755044569995,33.21,4595.1,4595.0,10.48427856]
[1755044570815,33.21,4595.1,4595.0,10.95577856]
[1755044571200,33.21,4595.1,4595.0,10.48427856]
[1755044571399,34.44,4595.1,4595.0,10.48427856]
[1755044572708,36.22,4595.1,4595.0,5.001]
[1755044572912,39.61435568,4595.1,4595.0,8.308]
[1755044574187,40.84435568,4595.1,4595.0,8.308]
[1755044575709,42.07435568,4595.1,4595.0,8.308]
[1755044576221,41.63265568,4595.1,4595.0,8.308]
[1755044577389,43.30435568,4595.1,4595.0,8.308]
[1755044578910,44.53435568,4595.1,4595.0,8.308]
[1755044580217,45.76435568,4595.1,4595.0,8.308]
[1755044581625,46.99435568,4595.1,4595.0,8.308]
[1755044583028,48.22435568,4595.1,4595.0,8.308]
[1755044584352,48.99925568,4595.1,4595.0,8.308]
[1755044584561,49.46585568,4595.1,4595.0,8.308]
[1755044585405,51.64208688,4595.1,4595.0,8.308]
[1755044585606,52.87208688,4595.1,4595.0,8.308]
[1755044586934,54.10208688,4595.1,4595.0,8.308]
[1755044588349,55.33208688,4595.1,4595.0,8.308]
[1755044589735,56.56208688,4595.1,4595.0,5.001]
[1755044589913,56.56208688,4595.1,4595.0,8.308]
[1755044591125,57.79208688,4595.1,4595.0,8.308]
[1755044592552,59.02208688,4595.1,4595.0,8.308]
[1755044593718,60.25208688,4595.1,4595.0,8.308]
[1755044595139,58.21535568,4595.1,4595.0,5.001]
[1755044595345,61.12428688,4595.1,4595.0,8.308]
[1755044595529,61.59088688,4595.1,4595.0,8.308]
[1755044596649,62.82088688,4595.1,4595.0,8.308]
[1755044597940,64.05088688,4595.1,4595.0,8.308]
[1755044599233,63.58428688,4595.1,4595.0,8.308]
[1755044599427,64.81428688,4595.1,4595.0,8.308]
[1755044600149,65.28088688,4595.1,4595.0,8.308]
[1755044600849,66.51088688,4595.1,4595.0,8.308]
[1755044601550,66.04428688,4595.1,4595.0,8.308]
[1755044601749,66.51088688,4595.1,4595.0,8.308]
[1755044602121,67.74088688,4595.1,4595.0,8.308]
[1755044603056,66.54158688,4595.1,4595.0,8.308]
[1755044603562,67.77158688,4595.1,4595.0,8.308]
[1755044604466,68.97088688,4595.1,4595.0,8.308]
[1755044604625,70.20088688,4595.1,4595.0,8.308]
[1755044605133,69.00158688,4595.1,4595.0,8.308]
[1755044605339,69.73428688,4595.1,4595.0,8.308]
[1755044605570,70.20088688,4595.1,4595.0,8.308]
[1755044605767,69.00158688,4595.1,4595.0,8.308]
[1755044606271,70.23158688,4595.1,4595.0,8.754]
[1755044606849,70.23158688,4595.1,4595.0,8.308]
[1755044607736,71.46158688,4595.1,4595.0,8.308]
[1755044609068,72.69158688,4595.1,4595.0,8.308]
[1755044610375,73.92158688,4595.1,4595.0,8.308]
[1755044612281,75.15158688,4595.1,4595.0,8.308]
[1755044613480,75.91538688,4595.1,4595.0,8.308]
[1755044613695,77.14538688,4595.1,4595.0,8.308]
[1755044614462,76.38158688,4595.1,4595.0,8.308]
[1755044615073,77.61158688,4595.1,4595.0,8.308]
[1755044616424,78.84158688,4595.1,4595.0,8.308]
[1755044617665,80.07158688,4595.1,4595.0,8.308]
[1755044618711,75.1388,4595.1,4595.0,8.308]
[1755044619014,75.1388,4595.1,4595.0,11.71227856]
[1755044619164,76.3688,4595.1,4595.0,11.71227856]
[1755044619991,76.3688,4595.1,4595.0,9.536]
[1755044620579,77.5988,4595.1,4595.0,9.536]
[1755044621293,77.5988,4595.1,4595.0,11.71227856]
[1755044621896,78.8288,4595.1,4595.0,11.71227856]
[1755044623414,80.0588,4595.1,4595.0,11.71227856]
[1755044624713,80.0588,4595.1,4595.0,12.32684581]
[1755044624919,81.2888,4595.1,4595.0,13.10114581]
[1755044626302,82.5188,4595.1,4595.0,13.10114581]
[1755044627102,82.5188,4595.1,4595.0,11.71227856]
[1755044627720,83.7488,4595.1,4595.0,11.71227856]
[1755044629126,84.9788,4595.1,4595.0,11.71227856]
[1755044630428,86.2088,4595.1,4595.0,11.71227856]
[1755044631926,87.4388,4595.1,4595.0,10.93797856]
[1755044633025,88.6688,4595.1,4595.0,10.93797856]
[1755044634630,89.8988,4595.1,4595.0,10.93797856]
[1755044636608,91.1288,4595.1,4595.0,10.93797856]
[1755044637432,91.1288,4595.1,4595.0,13.10114248]
[1755044637641,91.02,4595.1,4595.0,43.10114248]
[1755044637952,92.25,4595.1,4595.0,43.10114248]
[1755044638100,92.25,4595.1,4595.0,43.20829142]
[1755044638994,92.25,4595.1,4595.0,32.27703142]
[1755044639104,93.48,4595.1,4595.0,43.20829142]
[1755044640646,94.71,4595.1,4595.0,43.31709142]
[1755044640843,0.002,4596.5,4596.4,2.17561569]
[1755044641008,0.1108,4596.5,4596.4,5.47961569]
[1755044641547,0.1108,4596.5,4596.4,3.304]
[1755044643142,1.3408,4596.5,4596.4,3.304]
[1755044644658,2.5708,4596.5,4596.4,3.304]
[1755044645859,3.8008,4596.5,4596.4,3.304]
[1755044647670,5.0308,4596.5,4596.4,3.304]
[1755044649773,6.2608,4596.5,4596.4,3.304]
[1755044650226,6.2608,4596.5,4596.1,5.217]
[1755044650431,3.38041847,4596.4,4596.2,3.303]
[1755044650630,0.1088,4596.3,4596.2,3.303]
[1755044650858,1.3136,4596.3,4596.2,3.303]
[1755044651242,2.5436,4596.3,4596.2,3.303]
[1755044652557,1.23,4596.3,4596.2,5.92261036]
[1755044652730,2.46,4596.3,4596.2,38.12273115]
[1755044654162,3.69,4596.3,4596.2,38.12273115]
[1755044655667,4.92,4596.3,4596.2,38.12273115]
[1755044657159,6.15,4596.3,4596.2,38.12273115]
[1755044659057,7.38,4596.3,4596.2,38.12273115]
[1755044660485,8.61,4596.3,4596.2,38.12273115]
[1755044661681,9.84,4596.3,4596.2,38.77481915]
[1755044662786,9.84,4596.3,4596.2,8.77481915]
[1755044662993,9.84,4596.3,4596.2,38.77481915]
[1755044663166,11.07,4596.3,4596.2,38.77481915]
[1755044663579,11.07,4596.3,4596.2,34.72291915]
[1755044663884,11.07,4596.3,4596.2,38.02491915]
[1755044664057,11.07,4596.3,4596.2,37.58101915]
[1755044664459,11.07,4596.3,4596.2,38.02491915]
[1755044664756,12.3,4596.3,4596.2,38.02491915]
[1755044665091,12.3,4596.3,4596.2,37.58101915]
[1755044665395,12.3,4596.3,4596.2,34.27901915]
[1755044665693,12.3,4596.3,4596.2,37.58101915]
[1755044666274,13.53,4596.3,4596.2,37.58101915]
[1755044667660,14.76,4596.3,4596.2,37.58101915]
[1755044669015,15.99,4596.3,4596.2,34.27901915]
[1755044669191,15.99,4596.3,4596.2,19.83883815]
[1755044669690,15.99,4596.3,4596.2,16.53783815]
[1755044669897,15.99,4596.3,4596.2,29.22419515]
[1755044670189,15.99,4596.3,4596.2,20.18558715]
[1755044670395,17.22,4596.3,4596.2,20.18558715]
[1755044670763,17.22,4596.3,4596.2,19.53349915]
[1755044670964,17.22,4596.3,4596.2,37.57803115]
[1755044671186,17.22,4596.3,4596.2,39.07642315]
[1755044671914,18.45,4596.3,4596.2,39.07642315]
[1755044673371,18.45,4596.3,4596.2,38.96762315]
[1755044673668,19.68,4596.3,4596.2,39.31570296]
[1755044674888,20.91,4596.3,4596.2,39.31570296]
[1755044675904,6.06092064,4596.5,4596.4,2.17561569]
[1755044676112,6.06092064,4596.5,4596.4,5.98554958]
[1755044676403,6.06092064,4596.5,4596.4,37.48184958]
[1755044677210,2.46,4597.2,4596.7,2.17544685]
[1755044677409,2.46,4597.2,4596.9,2.28417905]
[1755044677581,2.46,4597.2,4596.9,32.28417905]
[1755044677774,2.46,4597.2,4596.9,33.62659984]
[1755044677973,2.46,4597.2,4596.9,35.12289984]
[1755044678703,2.46,4597.2,4596.9,35.77493284]
[1755044679006,1.232,4597.0,4596.9,35.77493284]
[1755044679529,1.232,4597.0,4596.9,34.71133284]
[1755044679686,1.232,4597.0,4596.9,35.77493284]
[1755044680516,2.462,4597.0,4596.9,34.71133284]
[1755044681090,2.462,4597.0,4596.9,34.87209272]
[1755044681994,3.692,4597.0,4596.9,34.87209272]
[1755044683421,3.692,4597.0,4596.9,4.87209272]
[1755044683614,4.922,4597.0,4596.9,34.87209272]
[1755044684126,4.922,4597.0,4596.9,35.93569272]
[1755044684422,4.922,4597.0,4596.9,5.93569272]
[1755044684616,4.922,4597.0,4596.9,35.93569272]
[1755044685006,6.152,4597.0,4596.9,36.15309272]
[1755044685206,6.024,4597.0,4596.9,36.15309272]
[1755044686295,7.254,4597.0,4596.9,36.15309272]
[1755044687397,2.46,4597.2,4597.1,2.17528441]
[1755044687598,2.46,4597.2,4597.1,5.47528441]
[1755044687827,3.69,4597.2,4597.1,36.97158441]
[1755044688422,3.69,4597.2,4597.1,35.90798441]
[1755044689437,4.92,4597.2,4597.1,36.97158441]
[1755044689639,4.92,4597.2,4597.1,38.3140052]
[1755044689940,4.7761,4597.2,4597.1,38.3140052]
[1755044690103,4.7761,4597.2,4597.1,37.2504052]
[1755044690713,6.0061,4597.2,4597.1,37.2504052]
[1755044691240,6.0061,4597.2,4597.1,37.4678052]
[1755044691634,3.08664376,4597.2,4597.1,38.5314052]
[1755044692141,4.31664376,4597.2,4597.1,38.5314052]
[1755044693041,4.31664376,4597.2,4597.1,37.4678052]
[1755044693405,5.54664376,4597.2,4597.1,37.4678052]
[1755044693621,14.76,4597.4,4597.3,2.17518978]
[1755044693843,14.76,4597.4,4597.3,35.98312367]
[1755044694139,14.76,4597.4,4597.3,37.07462367]
[1755044694341,0.002,4597.7,4597.5,2.17509516]
[1755044694645,0.002,4597.7,4597.6,35.47404785]
[1755044694841,0.002,4597.7,4597.6,35.90674785]
[1755044695044,0.002,4597.9,4597.6,35.90674785]
[1755044695045,0.002,4597.9,4597.8,2.17495323]
[1755044695345,0.002,4597.9,4597.8,35.47395323]
[1755044695714,0.002,4597.9,4597.8,35.90665323]